bitfinex/quotes_ETHUSD_20250508
["timestamp","ask_amount","ask_price","bid_price","bid_amount"]
[1746702131650,7.6921,1957.5,1956.7,5.60141103]
[1746702131851,5.10950026,1957.2,1956.9,3.0]
[1746702132030,5.1092459,1957.3,1956.9,3.0]
[1746702132235,5.10935317,1957.2,1956.9,3.0]
[1746702132635,8.78064883,1957.5,1956.9,3.0]
[1746702132636,5.10920949,1957.3,1956.9,3.0]
[1746702132892,10.58099046,1957.5,1956.9,3.0]
[1746702132893,5.10893705,1957.4,1956.9,8.11007683]
[1746702133168,5.1094374,1957.2,1956.9,3.0]
[1746702133869,5.1094374,1957.2,1956.7,12.55657468]
[1746702133870,1.02185182,1957.2,1956.7,0.4398208]
[1746702134036,5.10999152,1957.0,1956.7,0.4398208]
[1746702134570,5.10989609,1957.0,1956.7,0.4398208]
[1746702134774,5.10949398,1957.2,1956.7,5.55027987]
[1746702134975,5.10894557,1957.4,1956.9,5.1100244]
[1746702135271,10.58099046,1957.5,1956.8,5.11028047]
[1746702135476,5.1089819,1957.4,1956.9,5.10999253]
[1746702135774,12.01767834,1957.5,1956.9,5.10987857]
[1746702135963,12.01767834,1957.5,1957.1,5.10949581]
[1746702136142,6.909,1957.5,1957.0,8.1097342]
[1746702136341,5.10919423,1957.3,1957.0,3.0]
[1746702136586,5.10991031,1957.0,1956.7,3.4398208]
[1746702136744,5.11027264,1956.9,1956.7,0.4398208]
[1746702136942,5.11030948,1956.9,1956.7,0.4398208]
[1746702137370,5.11030263,1956.9,1956.7,0.4398208]
[1746702137645,5.1103843,1956.8,1956.7,0.4398208]
[1746702137843,5.11030263,1956.9,1956.7,0.4398208]
[1746702138151,10.22065558,1956.9,1956.7,0.4398208]
[1746702138383,5.1103843,1956.8,1956.7,0.4398208]
[1746702139078,5.11027023,1956.9,1956.7,0.4398208]
[1746702139479,5.1103843,1956.8,1956.7,0.4398208]
[1746702140266,6.13244975,1956.8,1956.7,0.4398208]
[1746702142350,5.11027611,1956.9,1956.7,0.4398208]
[1746702142755,10.22063391,1956.9,1956.7,0.4398208]
[1746702142955,5.1103843,1956.8,1956.7,0.4398208]
[1746702143471,5.1102116,1956.9,1956.7,0.4398208]
[1746702143691,12.0189951,1957.0,1956.7,0.4398208]
[1746702143692,12.0189771,1957.0,1956.7,0.4398208]
[1746702144388,5.11020832,1956.9,1956.7,0.4398208]
[1746702144574,5.1103843,1956.8,1956.7,0.4398208]
[1746702145474,6.13244356,1956.8,1956.7,0.4398208]
[1746702145675,5.110281,1956.9,1956.7,0.4398208]
[1746702146195,6.909,1957.0,1956.7,5.55034708]
[1746702146490,12.01887344,1957.0,1956.7,5.55034708]
[1746702146660,12.01887344,1957.0,1956.7,0.4398208]
[1746702147076,5.11015124,1956.9,1956.7,0.4398208]
[1746702147289,5.11014147,1956.9,1956.7,0.4398208]
[1746702147488,5.1103843,1956.8,1956.7,0.4398208]
[1746702149553,8.6603843,1956.8,1956.7,0.4398208]
[1746702150505,5.11147164,1956.4,1955.4,6.06841104]
[1746702150800,5.11316431,1955.8,1955.4,5.11404094]
[1746702151298,5.11354164,1955.6,1955.2,5.11443946]
[1746702151458,5.11354164,1955.6,1955.3,3.0]
[1746702152405,5.11390176,1955.5,1955.1,11.18310424]
[1746702152707,5.11234611,1956.1,1955.2,0.05114074]
[1746702153005,6.98883632,1956.7,1956.2,5.11180263]
[1746702153006,5.11068908,1956.7,1956.2,5.11180263]
[1746702153177,5.1103843,1956.8,1956.2,3.0]
[1746702153388,5.1103843,1956.8,1956.1,8.11212992]
[1746702153603,5.1119073,1956.3,1955.9,8.11262251]
[1746702153779,5.11157171,1956.4,1956.0,5.11245377]
[1746702154109,5.11208995,1956.2,1955.7,3.0]
[1746702154315,5.11159472,1956.4,1955.9,5.1125676]
[1746702154530,5.11129367,1956.5,1955.9,5.11261845]
[1746702154723,6.773,1956.5,1955.8,5.11285826]
[1746702155021,5.11146386,1956.4,1955.9,5.11260447]
[1746702155194,14.88430357,1956.5,1955.9,5.11252814]
[1746702155397,5.11157666,1956.4,1955.9,5.11252814]
[1746702155797,5.111775,1956.3,1955.9,5.11252814]
[1746702156008,5.111775,1956.3,1956.0,0.8207]
[1746702156321,9.02623036,1956.5,1956.0,0.8207]
[1746702156523,5.11193936,1956.3,1956.0,0.8207]
[1746702156882,10.22389027,1956.3,1956.0,0.8207]
[1746702157204,5.11193936,1956.3,1956.0,0.8207]
[1746702157399,5.11153804,1956.4,1956.0,0.8207]
[1746702157603,11.88432907,1956.5,1956.1,5.11210105]
[1746702157777,5.11162175,1956.4,1956.2,0.8145]
[1746702157977,5.11200563,1956.2,1955.9,0.8145]
[1746702158181,5.11230263,1956.1,1955.9,0.8145]
[1746702158496,5.11210046,1956.2,1955.9,0.8145]
[1746702158812,5.11178783,1956.3,1955.9,0.8145]
[1746702159012,5.11205509,1956.2,1955.9,0.8145]
[1746702159222,5.11247443,1956.0,1955.9,0.8145]
[1746702159387,10.22517865,1956.0,1955.7,0.8013]
[1746702159587,5.11276251,1955.9,1955.7,3.8013]
[1746702159900,5.11352014,1955.6,1954.7,0.4398208]
[1746702160086,5.11282605,1955.9,1955.4,0.8013]
[1746702160280,5.11162096,1956.4,1955.7,0.8075]
[1746702160484,5.11181731,1956.3,1955.9,5.11259851]
[1746702160703,5.11205116,1956.2,1956.0,0.8075]
[1746702160927,5.1118258,1956.3,1956.0,0.8075]
[1746702161114,10.22323925,1956.4,1956.1,0.793]
[1746702161342,5.11184914,1956.3,1956.1,0.793]
[1746702161541,18.409,1956.5,1956.1,0.793]
[1746702161744,5.11195174,1956.2,1956.1,0.793]
[1746702161922,5.11186326,1956.3,1956.1,0.793]
[1746702162654,5.11195174,1956.2,1956.1,0.793]
[1746702162855,5.11286599,1955.9,1955.7,0.8296]
[1746702163023,5.11279221,1955.9,1955.7,0.8296]
[1746702163224,5.11256946,1956.0,1955.7,0.8296]
[1746702163419,5.11214858,1956.2,1955.9,0.8173]
[1746702164545,5.11212888,1956.2,1955.9,0.8173]
[1746702164760,0.8189,1956.4,1955.8,3.0]
[1746702164920,5.11142915,1956.4,1955.9,0.87112617]
[1746702165124,5.11189723,1956.3,1956.0,3.0]
[1746702165323,5.11207181,1956.2,1956.0,3.0]
[1746702165622,5.11207181,1956.2,1955.9,0.82]
[1746702165830,5.1114543,1956.4,1955.9,0.82]
[1746702166052,5.11221307,1956.1,1955.7,0.7619]
[1746702166254,5.11299723,1955.8,1955.7,0.7619]
[1746702166953,5.11287961,1955.9,1955.5,0.7608]
[1746702167263,5.11288381,1955.9,1955.5,0.7608]
[1746702167462,5.11288381,1955.9,1955.6,3.0]
[1746702167621,5.11320269,1955.8,1955.5,0.7608]
[1746702167961,1.18868838,1955.9,1955.3,3.0]
[1746702167962,5.11352014,1955.6,1955.3,0.7637]
[1746702168120,5.11387508,1955.5,1955.3,0.7637]
[1746702168830,5.11369447,1955.6,1955.3,0.7637]
[1746702169034,5.11376833,1955.6,1955.3,0.7637]
[1746702169348,5.11404316,1955.4,1955.0,0.7618]
[1746702169542,5.11404316,1955.4,1955.1,3.0]
[1746702169754,5.11432502,1955.3,1955.1,3.0]
[1746702170043,0.7823,1955.5,1955.1,3.0]
[1746702170357,5.11442187,1955.3,1955.0,0.7618]
[1746702170555,7.5563,1955.7,1955.0,0.59281631]
[1746702170754,7.5563,1955.7,1955.1,3.7618]
[1746702170755,5.11417481,1955.4,1955.1,3.7618]
[1746702170943,7.5563,1955.7,1954.8,0.7618]
[1746702171143,5.11494386,1955.1,1954.8,3.81295283]
[1746702171322,5.11493615,1955.1,1954.8,3.7618]
[1746702171656,6.30155222,1955.9,1954.8,1.15306865]
[1746702171657,1.18868838,1955.9,1954.8,1.15306865]
[1746702171820,5.11221307,1956.1,1955.3,0.8003]
[1746702172018,5.901833,1955.8,1955.3,0.8003]
[1746702172275,5.90122779,1956.1,1955.3,0.8003]
[1746702172766,5.11301047,1955.8,1955.5,0.7897]
[1746702173261,5.11290532,1955.9,1955.6,3.0]
[1746702173556,5.11261068,1956.0,1955.6,0.8903464]
[1746702173853,5.11261068,1956.0,1955.6,3.0]
[1746702174053,5.11227341,1956.1,1955.8,0.764]
[1746702174255,6.775,1956.2,1955.8,0.764]
[1746702174458,5.11233355,1956.1,1955.8,0.764]
[1746702174822,5.11259546,1956.0,1955.6,0.774]
[1746702175071,5.11237812,1956.1,1955.7,3.0]
[1746702175224,5.11237812,1956.1,1955.7,8.11322502]
[1746702175225,5.11234164,1956.1,1955.7,8.11322502]
[1746702175429,5.11234164,1956.1,1955.7,9.00197374]
[1746702176075,10.22481524,1956.1,1955.7,9.00197374]
[1746702176276,5.11248406,1956.0,1955.7,0.88874872]
[1746702176455,10.22519593,1956.0,1955.6,8.88735065]
[1746702176659,6.775,1956.2,1955.6,0.774]
[1746702176863,5.11315358,1955.8,1955.6,0.774]
[1746702177158,5.11325867,1955.7,1955.4,3.796]
[1746702177358,7.5359,1956.2,1955.4,0.796]
[1746702177535,5.1131599,1955.8,1955.4,3.796]
[1746702177740,5.11326872,1955.7,1955.4,8.90999927]
[1746702177964,5.113078,1955.8,1955.4,8.90999927]
[1746702178743,5.11288515,1955.9,1955.5,5.11373416]
[1746702179588,6.775,1956.2,1955.7,5.11305615]
[1746702179772,5.11206925,1956.2,1955.8,3.0]
[1746702179934,5.11225265,1956.1,1955.8,3.0]
[1746702180447,5.11311338,1955.8,1955.7,3.0]
[1746702180644,5.11300994,1955.8,1955.6,0.7835]
[1746702180968,5.11325867,1955.7,1955.6,0.7835]
[1746702181473,5.11325867,1955.7,1955.5,3.0]
[1746702181474,5.11361949,1955.6,1955.4,0.7641]
[1746702182363,0.8051,1955.7,1955.1,0.8132]
[1746702182566,5.11442139,1955.3,1955.1,0.8132]
[1746702182771,5.11416567,1955.4,1955.1,0.8132]
[1746702183068,5.11368236,1955.6,1955.2,5.11445475]
[1746702183376,5.1139273,1955.5,1955.1,3.8132]
[1746702183679,5.11366047,1955.6,1955.4,0.7563]
[1746702183680,5.11366168,1955.6,1955.4,0.7563]
[1746702183977,6.775,1955.8,1955.4,0.7563]
[1746702184148,5.11317153,1955.8,1955.5,3.0]
[1746702184977,5.11309384,1955.8,1955.5,3.0]
[1746702185273,5.11309384,1955.8,1955.5,8.11375082]
[1746702185580,6.771,1956.0,1955.4,4.34335628]
[1746702185784,5.11348505,1955.7,1955.4,3.7563]
[1746702185972,5.11361098,1955.6,1955.4,3.7563]
[1746702186274,6.771,1956.0,1955.6,5.11346978]
[1746702186477,5.11198432,1956.2,1955.8,5.11286263]
[1746702186678,5.11260058,1956.0,1955.7,3.817]
[1746702186989,5.11235585,1956.1,1955.7,8.93013537]
[1746702187158,5.11250717,1956.0,1955.7,5.82818162]
[1746702187483,5.1123604,1956.1,1955.7,10.94143847]
[1746702187776,5.11252887,1956.0,1955.7,3.817]
[1746702187990,5.1103843,1956.8,1956.3,0.8113]
[1746702188172,5.11142915,1956.4,1956.3,0.8113]
[1746702188690,5.11078362,1956.7,1956.3,0.8113]
[1746702188862,5.11091493,1956.6,1956.3,0.8113]
[1746702189043,5.11031228,1956.9,1956.5,5.11106942]
[1746702189246,5.11031228,1956.9,1956.4,5.49491973]
[1746702189483,5.11047971,1956.8,1956.4,5.11127733]
[1746702189669,5.11031228,1956.9,1956.4,5.11125449]
[1746702189856,5.11041572,1956.8,1956.4,8.11122898]
[1746702190056,5.11041572,1956.8,1956.4,9.57386837]
[1746702190292,5.11006376,1957.0,1956.7,0.7533]
[1746702190794,5.10987754,1957.0,1956.7,0.7533]
[1746702190946,6.771,1957.2,1956.7,0.7533]
[1746702191146,6.771,1957.2,1956.9,8.1099995]
[1746702191357,10.21805698,1957.4,1956.9,8.1099995]
[1746702191649,5.10914886,1957.3,1956.9,8.1099995]
[1746702191954,5.1103843,1956.8,1956.7,3.7533]
[1746702192178,5.11107161,1956.6,1956.4,0.7819]
[1746702192547,5.11073772,1956.7,1956.4,0.7819]
[1746702192752,6.77,1957.1,1956.4,3.7819]
[1746702192960,5.10988329,1957.0,1956.7,3.0]
[1746702193384,11.87970353,1957.1,1956.8,3.0]
[1746702193590,5.11022494,1956.9,1956.7,0.7727]
[1746702193750,11.87970874,1957.1,1956.7,0.7727]
[1746702194087,5.10986203,1957.0,1956.7,0.7727]
[1746702194384,5.11017968,1956.9,1956.7,0.7727]
[1746702194881,11.87979466,1957.1,1956.7,3.7727]
[1746702195069,11.87979466,1957.1,1956.7,9.7716981]
[1746702196080,5.10994471,1957.0,1956.7,4.66105757]
[1746702196285,5.10974528,1957.1,1956.7,9.77168247]
[1746702196470,5.10868348,1957.5,1956.9,0.8239]
[1746702196675,5.10854988,1957.6,1957.2,0.8239]
[1746702196845,5.10960094,1957.1,1956.9,6.89231104]
[1746702197050,5.10941183,1957.2,1956.7,4.71025757]
[1746702197282,5.10941183,1957.2,1956.8,5.11023317]
[1746702197580,5.10941183,1957.2,1956.9,3.8219]
[1746702197750,5.10948066,1957.2,1956.9,0.8219]
[1746702197943,5.10956125,1957.2,1956.9,1.41511815]
[1746702198148,5.10922656,1957.3,1956.9,4.41511815]
[1746702198364,5.10922656,1957.3,1956.9,9.52514408]
[1746702198565,5.1093913,1957.2,1956.9,4.41511815]
[1746702199004,5.10909633,1957.3,1956.9,9.52504234]
[1746702199208,5.10848156,1957.6,1957.2,5.10924914]
[1746702199373,5.10815893,1957.7,1957.3,8.88485083]
[1746702199708,5.10832203,1957.6,1957.3,3.7758]
[1746702200071,5.10881781,1957.4,1957.3,3.7758]
[1746702200373,5.10933987,1957.2,1957.1,6.84671104]
[1746702200591,5.10933987,1957.2,1957.1,0.7783]
[1746702200996,5.10890604,1957.4,1957.1,0.7783]
[1746702201196,5.10908847,1957.3,1957.1,0.7783]
[1746702201497,5.10923706,1957.3,1957.1,0.7783]
[1746702201707,0.7927,1957.7,1957.1,5.53851814]
[1746702201917,0.7927,1957.7,1957.2,5.10911006]
[1746702201918,5.10829097,1957.7,1957.2,5.10911006]
[1746702202151,12.70006192,1958.0,1957.1,5.53838363]
[1746702202152,5.10839282,1957.6,1957.3,5.10907095]
[1746702202285,5.10841204,1957.6,1957.1,5.48733322]
[1746702202617,5.10828171,1957.7,1957.3,5.109076]
[1746702202816,10.21656114,1957.7,1957.3,5.109076]
[1746702203107,5.10829897,1957.6,1957.3,5.109076]
[1746702203306,11.87639898,1958.0,1957.5,5.10844454]
[1746702203509,5.11888882,1958.1,1957.6,5.15918789]
[1746702203671,10.22612201,1958.1,1957.7,5.10798329]
[1746702203868,5.10728432,1958.0,1957.7,5.10798329]
[1746702204121,5.10777403,1957.8,1957.7,3.0]
[1746702204420,5.10792593,1957.8,1957.5,3.0]
[1746702204567,5.10742202,1958.0,1957.6,0.05107779]
[1746702204768,0.01183992,1958.1,1957.7,5.8653908]
[1746702205009,5.1189729,1958.1,1957.7,5.8653908]
[1746702205404,5.1189729,1958.1,1957.7,5.91646385]
[1746702205922,1.03442355,1958.1,1957.7,0.7575]
[1746702206096,5.10777403,1957.8,1957.7,0.7575]
[1746702206498,5.10767791,1957.9,1957.7,0.7575]
[1746702206697,5.10777403,1957.8,1957.7,0.7575]
[1746702207012,5.10766618,1957.9,1957.7,0.7575]
[1746702207813,5.10829587,1957.6,1957.5,9.83751104]
[1746702208012,5.10815106,1957.7,1957.5,0.7691]
[1746702208592,5.10829587,1957.6,1957.5,0.7691]
[1746702209004,6.12980397,1957.7,1957.5,0.7691]
[1746702209882,5.10788108,1957.8,1957.5,0.7691]
[1746702210081,11.8849453,1958.1,1957.6,5.10829507]
[1746702210305,6.77783992,1958.1,1957.6,5.10829507]
[1746702210502,5.10734936,1958.0,1957.6,5.10829507]
[1746702210708,5.10761036,1957.9,1957.6,3.0]
[1746702211219,5.10734936,1958.0,1957.6,3.0]
[1746702211220,5.10738903,1958.0,1957.6,8.57898497]
[1746702211580,5.10752714,1957.9,1957.6,3.47070019]
[1746702212229,5.10803493,1957.7,1957.6,3.47070019]
[1746702212433,6.12910754,1957.9,1957.6,0.47070019]
[1746702212617,5.10761592,1957.9,1957.6,0.47070019]
[1746702212920,5.10761592,1957.9,1957.5,5.87755723]
[1746702213133,5.10778001,1957.8,1957.5,5.87755723]
[1746702213444,5.10761592,1957.9,1957.5,5.87755723]
[1746702213629,5.10761592,1957.9,1957.6,3.0]
[1746702213831,1.02149824,1957.9,1957.5,0.7691]
[1746702214030,5.10824249,1957.7,1957.5,0.7691]
[1746702214329,6.766,1958.1,1957.5,0.7691]
[1746702214530,5.10764515,1957.9,1957.6,3.05107776]
[1746702214729,5.10764515,1957.9,1957.6,3.5222666]
[1746702215233,5.10764515,1957.9,1957.6,3.80499492]
[1746702215844,5.10763231,1957.9,1957.6,0.80499492]
[1746702216032,5.10763231,1957.9,1957.6,0.28272832]
[1746702216208,5.10779079,1957.8,1957.6,0.28272832]
[1746702216412,5.10769714,1957.9,1957.6,0.75391716]
[1746702216618,5.10778227,1957.8,1957.6,1.22508121]
[1746702217148,5.10785539,1957.8,1957.6,0.75389237]
[1746702217365,5.10785539,1957.8,1957.6,0.47116405]
[1746702217535,5.10803493,1957.7,1957.6,0.47116405]
[1746702217726,5.10803493,1957.7,1957.5,4.05182832]
[1746702217925,5.10785539,1957.8,1957.5,4.52301716]
[1746702218159,5.10829587,1957.6,1957.5,4.52301716]
[1746702218365,0.7987,1958.7,1957.9,0.7876]
[1746702218585,5.10484552,1959.0,1957.9,0.7876]
[1746702218586,5.10478997,1959.0,1958.4,3.30671502]
[1746702218738,5.10291462,1959.7,1959.1,0.55]
[1746702218939,5.10291462,1959.7,1959.0,0.8183]
[1746702218940,0.51029146,1959.7,1959.0,0.8183]
[1746702219176,5.10384313,1959.4,1959.0,0.8183]
[1746702219540,5.10344755,1959.5,1959.0,0.8183]
[1746702219741,5.10321723,1959.6,1959.2,3.0]
[1746702220058,5.10337811,1959.5,1959.1,0.55]
[1746702220377,5.10322301,1959.6,1959.1,8.10437212]
[1746702220682,0.7734,1959.7,1958.9,0.55]
[1746702220847,5.10401376,1959.3,1958.8,0.8066]
[1746702221169,5.10425271,1959.2,1958.8,0.8066]
[1746702221461,5.10438515,1959.1,1958.8,0.8066]
[1746702221669,5.10421229,1959.2,1958.8,0.8066]
[1746702221866,5.10451477,1959.1,1958.8,0.8066]
[1746702222072,5.10419937,1959.2,1958.8,0.8066]
[1746702222232,5.10442841,1959.1,1958.8,0.8066]
[1746702222430,5.10490581,1958.9,1958.6,0.3755078]
[1746702222646,5.10530439,1958.8,1958.5,0.7543]
[1746702222865,5.10557109,1958.7,1958.5,0.7543]
[1746702223368,5.10490581,1958.9,1958.5,0.7543]
[1746702223534,5.10584816,1958.6,1958.3,0.39252407]
[1746702223735,6.753,1958.7,1958.3,0.05105872]
[1746702223932,6.753,1958.7,1958.2,9.85241104]
[1746702224136,5.10584185,1958.6,1958.2,16.45503343]
[1746702224355,5.10584185,1958.6,1958.2,6.85241104]
[1746702224356,5.10568773,1958.6,1958.2,6.85241104]
[1746702224666,11.85856583,1958.7,1958.3,3.0]
[1746702224858,11.85858281,1958.7,1958.3,0.05106342]
[1746702225031,6.753,1958.7,1958.4,3.0]
[1746702225238,5.10502767,1958.9,1958.6,3.0]
[1746702225434,11.85784976,1959.0,1958.6,8.10565114]
[1746702225634,5.10484976,1959.0,1958.6,8.10565114]
[1746702225864,5.10484976,1959.0,1958.5,8.89078312]
[1746702226067,5.10568773,1958.6,1958.5,3.0]
[1746702226563,5.10594842,1958.5,1958.4,6.06841104]
[1746702226763,5.10688439,1958.2,1958.0,0.7934]
[1746702226947,5.10699147,1958.1,1958.0,0.7934]
[1746702227469,5.10699147,1958.1,1957.7,11.1764031]
[1746702227470,5.10777403,1957.8,1957.7,6.06841104]
[1746702227667,5.10792445,1957.8,1957.5,7.17467027]
[1746702227876,5.10756571,1957.9,1957.5,1.10625923]
[1746702228167,5.10756571,1957.9,1957.6,0.86897757]
[1746702228558,5.10803493,1957.7,1957.6,0.8179]
[1746702229672,5.10791547,1957.8,1957.6,0.8179]
[1746702229867,5.10757308,1957.9,1957.6,0.8179]
[1746702230250,5.1076115,1957.9,1957.6,4.75318926]
[1746702230646,5.10777769,1957.8,1957.6,0.8179]
[1746702230856,5.10803493,1957.7,1957.3,0.7552]
[1746702231046,0.7827,1958.0,1957.3,0.7552]
[1746702231265,5.10764613,1957.9,1957.5,5.10853209]
[1746702231575,5.10764613,1957.9,1957.4,8.15974964]
[1746702231576,5.10777732,1957.8,1957.4,8.10866383]
[1746702231744,5.10777732,1957.8,1957.5,0.81086638]
[1746702231937,5.10804054,1957.7,1957.4,9.06841104]
[1746702233273,5.10791107,1957.8,1957.4,14.1771899]
[1746702233569,5.10736915,1958.0,1957.4,14.1771899]
[1746702233769,5.10764473,1957.9,1957.5,5.10846818]
[1746702233977,5.10781343,1957.8,1957.4,14.17709609]
[1746702234181,5.10781343,1957.8,1957.5,1.41770961]
[1746702234666,5.10781343,1957.8,1957.5,1.46878797]
[1746702235256,5.10749986,1958.0,1957.5,6.57722062]
[1746702235442,5.10778523,1957.8,1957.5,1.46878797]
[1746702235650,5.10763022,1957.9,1957.5,6.52620497]
[1746702235985,5.10848505,1957.6,1957.4,3.0]
[1746702236141,5.10843087,1957.6,1957.4,3.0]
[1746702236573,5.1082041,1957.7,1957.4,3.0]
[1746702237081,5.10806623,1957.7,1957.4,3.05108202]
[1746702237776,5.10832442,1957.6,1957.4,3.05108202]
[1746702237976,5.10832442,1957.6,1957.4,4.5358469]
[1746702238176,5.10819156,1957.7,1957.4,4.5358469]
[1746702238478,10.2164164,1957.7,1957.4,4.5358469]
[1746702238866,5.1082447,1957.7,1957.4,1.5358469]
[1746702239173,5.10839312,1957.6,1957.3,7.19851718]
[1746702239374,5.10820784,1957.7,1957.4,0.05108243]
[1746702240082,5.10801478,1957.8,1957.4,5.159893]
[1746702240676,5.10767972,1957.9,1957.5,5.10853644]
[1746702240867,5.10767972,1957.9,1957.6,0.05107717]
[1746702241070,5.10779509,1957.8,1957.6,0.05107717]
[1746702241267,5.1082971,1957.6,1957.4,6.06841104]
[1746702241467,5.10844812,1957.6,1957.4,0.71985172]
[1746702241651,6.753,1958.2,1957.4,0.77093429]
[1746702241854,5.10785934,1957.8,1957.4,11.94800186]
[1746702242070,5.10785934,1957.8,1957.4,11.89691929]
[1746702242277,5.10803797,1957.7,1957.5,0.05107774]
[1746702242987,5.10829587,1957.6,1957.4,6.78826276]
[1746702244004,5.10784195,1957.8,1957.5,0.67882628]
[1746702244565,5.10751974,1957.9,1957.6,0.0510795]
[1746702246906,0.7603,1958.5,1957.8,0.55]
[1746702247090,5.10641821,1958.4,1958.0,5.10723648]
[1746702247269,5.10649133,1958.3,1958.0,1.26642365]
[1746702247472,5.10692491,1958.2,1958.0,1.26642365]
[1746702247767,5.10725229,1958.0,1957.9,6.06841104]
[1746702248101,5.10725229,1958.0,1957.7,11.94663922]
[1746702248304,5.10650718,1958.3,1957.7,6.83861104]
[1746702248514,5.10764659,1957.9,1957.7,6.83861104]
[1746702249891,5.10741666,1958.0,1957.7,6.83861104]
[1746702250098,5.10741666,1958.0,1957.8,0.6838611]
[1746702250294,5.10751315,1957.9,1957.8,0.6838611]
[1746702250493,5.10725723,1958.0,1957.5,6.86901104]
[1746702250691,5.10801765,1957.8,1957.5,6.86901104]
[1746702251709,5.10801765,1957.8,1957.6,0.05107777]
[1746702251874,5.10803493,1957.7,1957.6,0.05107777]
[1746702252205,5.10803493,1957.7,1957.5,6.86901104]
[1746702252787,5.10801765,1957.8,1957.5,7.55355191]
[1746702253604,10.21603344,1957.8,1957.5,7.55355191]
[1746702253772,5.10829587,1957.6,1957.5,6.86901104]
[1746702253980,5.10829587,1957.6,1957.4,6.06841104]
[1746702254996,5.10850583,1957.6,1957.4,6.06841104]
[1746702255697,10.21702867,1957.6,1957.4,6.06841104]
[1746702256025,5.10855683,1957.5,1957.4,6.06841104]
[1746702256596,5.10855683,1957.5,1957.4,6.54007535]
[1746702256789,5.10855683,1957.5,1957.4,0.47166431]
[1746702257204,5.10907883,1957.3,1957.2,0.94344443]
[1746702257634,5.10907883,1957.3,1957.2,0.47178012]
[1746702258834,5.87177883,1957.3,1957.2,0.47178012]
[1746702259034,6.96983932,1957.3,1957.2,0.47178012]
[1746702259218,5.10983086,1957.1,1956.8,0.94382796]
[1746702259539,5.11011308,1957.0,1956.8,1.22688886]
[1746702259838,5.11006284,1957.0,1956.8,0.75484102]
[1746702260144,5.11012315,1956.9,1956.8,0.47178012]
[1746702260311,5.11012315,1956.9,1956.7,4.7360118]
[1746702260717,5.10999463,1957.0,1956.7,4.7360118]
[1746702261743,5.10999463,1957.0,1956.7,4.26396396]
[1746702262202,5.10942599,1957.2,1956.8,0.05110234]
[1746702262406,5.10924923,1957.3,1957.0,3.0]
[1746702262853,10.21856102,1957.3,1957.0,3.0]
[1746702263145,5.1103843,1956.8,1956.5,8.11115617]
[1746702263332,5.11026903,1956.9,1956.5,10.11908128]
[1746702263529,5.11047171,1956.8,1956.5,5.00792511]
[1746702263736,5.11029172,1956.9,1956.5,10.11900631]
[1746702264649,10.22066968,1956.9,1956.5,10.50010877]
[1746702264814,5.11029172,1956.9,1956.5,10.50010877]
[1746702265418,5.10986203,1957.0,1956.5,5.38902757]
[1746702265620,5.11076971,1956.7,1956.5,5.38902757]
[1746702265854,5.1111679,1956.5,1956.4,0.7884]
[1746702266005,5.1111679,1956.5,1956.2,1.24738749]
[1746702266210,7.5136,1956.9,1956.2,1.24738749]
[1746702266621,5.11169043,1956.3,1956.2,3.47108749]
[1746702266824,5.11169043,1956.3,1956.0,0.7542]
[1746702266825,5.11221307,1956.1,1956.0,0.7542]
[1746702267148,5.11221307,1956.1,1955.9,0.47108749]
[1746702267439,5.11211426,1956.2,1955.9,3.47108749]
[1746702267856,5.89304547,1956.7,1956.0,0.7542]
[1746702268153,5.1118213,1956.3,1956.0,0.7542]
[1746702268320,11.85618474,1956.5,1956.0,0.7542]
[1746702268642,5.1120613,1956.2,1956.0,0.7542]
[1746702268843,5.1120613,1956.2,1955.9,3.0]
[1746702269148,5.11211994,1956.2,1955.9,3.0]
[1746702269645,5.86494748,1956.3,1955.9,8.11271685]
[1746702270143,5.11205793,1956.2,1955.9,3.0]
[1746702270343,5.86487835,1956.3,1955.9,8.11258297]
[1746702270513,5.86487835,1956.3,1955.9,10.1201551]
[1746702270715,5.86487835,1956.3,1955.9,10.17127778]
[1746702270917,5.11155708,1956.4,1955.9,10.17123285]
[1746702270918,5.11153029,1956.4,1955.9,10.17123285]
[1746702271219,12.67683753,1956.5,1956.2,3.0]
[1746702271534,5.11174048,1956.3,1956.0,3.0]
[1746702271738,5.11198569,1956.2,1955.9,3.0]
[1746702271954,5.11180239,1956.3,1955.9,3.0]
[1746702272260,5.11156869,1956.4,1956.0,8.16357021]
[1746702272460,5.9317998,1956.5,1956.1,3.0]
[1746702272748,5.1105269,1956.8,1956.4,5.11116926]
[1746702272958,11.85627892,1956.9,1956.3,6.30693181]
[1746702273152,11.85627892,1956.9,1956.6,3.0]
[1746702273737,11.85627892,1956.9,1956.5,0.75]
[1746702273738,5.11038992,1956.8,1956.5,0.75]
[1746702274055,5.11101066,1956.6,1956.4,3.0]
[1746702274365,5.1108129,1956.7,1956.3,3.8306]
[1746702274562,6.746,1956.9,1956.5,5.11115922]
[1746702274721,11.85627912,1956.9,1956.6,3.0]
[1746702275640,16.9666552,1956.9,1956.6,3.0]
[1746702275828,11.85627912,1956.9,1956.6,3.0]
[1746702276142,5.11027912,1956.9,1956.7,0.8254]
[1746702277448,19.2103,1957.0,1956.4,3.7551]
[1746702277633,5.11064592,1956.7,1956.4,3.7551]
[1746702278430,5.1105435,1956.8,1956.4,8.86650025]
[1746702279750,5.11024629,1956.9,1956.5,5.11112225]
[1746702279953,5.11024629,1956.9,1956.5,6.55998256]
[1746702280550,5.11024629,1956.9,1956.5,6.55981848]
[1746702280949,5.11024629,1956.9,1956.6,3.0]
[1746702281120,23.51102272,1957.0,1956.6,8.11085495]
[1746702281320,28.62110133,1957.0,1956.6,8.11085495]
[1746702281640,28.62114177,1957.0,1956.6,8.11085495]
[1746702281817,28.62111933,1957.0,1956.6,8.11085495]
[1746702282020,0.7706,1957.4,1956.9,3.30693181]
[1746702282227,12.58499476,1957.6,1957.2,3.0]
[1746702282560,5.10754597,1957.9,1957.2,3.0]
[1746702282561,5.1076343,1957.9,1957.5,8.10845501]
[1746702282766,5.1076343,1957.9,1957.5,3.0]
[1746702282946,5.10779608,1957.8,1957.5,3.0]
[1746702283146,5.1076451,1957.9,1957.5,8.10846682]
[1746702283359,5.10739084,1958.0,1957.7,3.0]
[1746702283874,5.10648746,1958.3,1957.6,3.7643]
[1746702284022,5.10801444,1957.8,1957.6,0.7643]
[1746702284221,5.10803493,1957.7,1957.4,3.8209]
[1746702284451,5.88908575,1958.0,1957.4,0.8209]
[1746702284649,5.88908575,1958.0,1957.3,3.0]
[1746702284650,5.1080199,1957.8,1957.3,8.93705059]
[1746702284853,5.10813139,1957.7,1957.3,8.93705059]